fUSD/lending_fUSD_20240628
["ID","MTS","AMOUNT","RATE_DAILY","PERIOD"]
[330585794,1719592242823,-775.40297049,0.00020001,2]
[330585795,1719592242833,-775.40297049,0.00020001,2]
[330585796,1719592242842,-775.40297049,0.00020001,2]
[330585797,1719592242851,-775.40297049,0.00020001,2]
[330585798,1719592242861,-775.40297049,0.00020001,2]
[330585799,1719592242870,-775.40297049,0.00020001,2]
[330585800,1719592242880,-775.40297049,0.00020001,2]
[330585801,1719592242888,-775.40297049,0.00020001,2]
[330585802,1719592242898,-25351.14182479,0.00020011,2]
[330585803,1719592242953,-947.72125674,0.00020011,2]
[330585804,1719592242964,-694.98188254,0.00020011,2]
[330585805,1719592242976,-6840.44346774,0.00020011,2]
[330585806,1719592242987,-281.186742,0.00020011,2]
[330585807,1719592242998,-443.0644103,0.00020011,2]
[330585808,1719592243009,-501.7001713,0.00020011,2]
[330585809,1719592243022,-10304.84428009,0.00020011,2]
[330585810,1719592243032,-775.40297049,0.00020015,2]
[330585811,1719592243041,-775.40297049,0.00020015,2]
[330585812,1719592243050,-775.40297049,0.00020015,2]
[330585813,1719592243059,-6661.0764581,0.00020025,2]
[330585814,1719592243069,-775.40297049,0.00020025,2]
[330585815,1719592243078,-775.40297049,0.00020025,2]
[330585816,1719592243089,-1722.633712,0.00020035,2]
[330585817,1719592243098,-400.356326,0.00020035,2]
[330585818,1719592243108,-207.542993,0.00020035,2]
[330585819,1719592243117,-152.728455,0.00020035,2]
[330585820,1719592243126,-193.940895,0.00020035,2]
[330585821,1719592243136,-775.40297049,0.00020073,2]
[330585822,1719592243147,-775.40297049,0.00020073,2]
[330585823,1719592243157,-189.967853,0.00020083,2]
[330585824,1719592243167,-2198.546258,0.00020083,2]
[330585825,1719592243176,-178.223548,0.00020083,2]
[330585826,1719592243185,-161.090664,0.00020083,2]
[330585828,1719592243195,-3114.014294,0.00020083,2]
[330585830,1719592243204,-721.561753,0.00020083,2]
[330585832,1719592243213,-178.223549,0.00020083,2]
[330585834,1719592243222,-169.305002,0.00020083,2]
[330585836,1719592243232,-252.344115,0.00020083,2]
[330585838,1719592243241,-200.0,0.00020083,2]
[330585840,1719592243251,-157.773897,0.00020083,2]
[330585842,1719592243260,-162.034297,0.00020083,2]
[330585844,1719592243270,-156.200212,0.00020083,2]
[330585846,1719592243280,-162.710437,0.00020083,2]
[330585848,1719592243294,-172.167232,0.00020083,2]
[330585850,1719592243305,-188.535227,0.00020083,2]
[330585852,1719592243314,-1179.977254,0.00020083,2]
[330585854,1719592243324,-1102.807005,0.00020083,2]
[330585857,1719592243336,-180.590526,0.00020083,2]
[330585860,1719592243345,-215.392391,0.00020083,2]
[330585865,1719592243354,-3445.267423,0.00020083,2]
[330585870,1719592243366,-367.602335,0.00020083,2]
[330585875,1719592243375,-152.728456,0.00020083,2]
[330585880,1719592243384,-151.0,0.00020141,2]
[330585883,1719592243393,-24.86693446,0.00020153,2]
[330585885,1719592243406,-375.13306554,0.00020153,2]
[330585887,1719592243415,-3387.78808289,0.00020232,2]
[330585890,1719592243426,-878.3549218,0.00020232,2]
[330585892,1719592243435,-2000.0,0.0002027,2]
[330585894,1719592243444,-1722.633712,0.00020286,2]
[330585896,1719592243454,-400.356326,0.00020286,2]
[330585897,1719592243463,-155.0,0.00020293,2]
[330585899,1719592243472,-167.117339,0.00020322,2]
[330585901,1719592243481,-181.533413,0.00020322,2]
[330585903,1719592243490,-167.117338,0.00020329,2]
[330585905,1719592243500,-2198.546258,0.00020334,2]
[330585907,1719592243509,-140.40295376,0.00020334,2]
[330585909,1719592243520,-2973.61134024,0.00020334,2]
[330585911,1719592243530,-721.561753,0.00020334,2]
[330585913,1719592243539,-188.535227,0.00020334,2]
[330585915,1719592243548,-1179.977254,0.00020334,2]
[330585917,1719592243557,-181.08893436,0.00020334,2]
[330585919,1719592243569,-921.71807064,0.00020334,2]
[330585921,1719592243578,-215.392391,0.00020334,2]
[330585923,1719592243592,-3445.267423,0.00020334,2]
[330585925,1719592243601,-367.602335,0.00020334,2]
[330585927,1719592243611,-387.67227845,0.0002034,2]
[330585929,1719592243621,-2000.0,0.000205,2]
[330585931,1719592243631,-250.77597332,0.00020505,2]
[330585933,1719592243640,-600.0,0.00020511,2]
[330585935,1719592243649,-676.08015859,0.00020536,2]
[330585937,1719592243661,-1046.55355341,0.00020536,2]
[330585939,1719592243671,-400.356326,0.00020536,2]
[330585942,1719592243680,-492.072385,0.00020548,2]
[330585943,1719592243690,-4266.14300469,0.00020564,2]
[330585945,1719592243699,-2100.0,0.00020575,2]
[330585947,1719592243709,-2198.546258,0.00020585,2]
[330585949,1719592243718,-161.090664,0.00020585,2]
[330585951,1719592243730,-3114.014294,0.00020585,2]
[330585953,1719592243741,-721.561753,0.00020585,2]
[330585955,1719592243750,-188.535227,0.00020585,2]
[330585957,1719592243760,-1179.977254,0.00020585,2]
[330585958,1719592243771,-1102.807005,0.00020585,2]
[330585959,1719592243781,-215.392391,0.00020585,2]
[330585960,1719592243790,-3445.267423,0.00020585,2]
[330585961,1719592243799,-367.602335,0.00020585,2]
[330585962,1719592243809,-167.19,0.00020612,2]
[330585963,1719592243818,-188.08625707,0.00020613,2]
[330585964,1719592243827,-151.0,0.00020616,2]
[330585965,1719592243841,-1000.0,0.000207,2]
[330585966,1719592243850,-59.95326605,0.00020765,2]
[330585967,1719592243861,-327.7190124,0.00020765,2]
[330585968,1719592243873,-1722.633712,0.00020786,2]
[330585969,1719592243882,-400.356326,0.00020786,2]
[330585970,1719592243891,-3140.04385146,0.000208,3]
[330585971,1719592243904,-5198.16634652,0.000208,3]
[330585972,1719592243928,-405.07956402,0.000208,3]
[330585973,1719592243939,-3027.95925375,0.000208,3]
[330585974,1719592243963,-2868.43341692,0.000208,3]
[330585975,1719592243974,-2930.71735568,0.000208,3]
[330585976,1719592244038,-3328.29870834,0.000208,3]
[330585980,1719592246261,-184.72150609,0.00019999,2]
[330585981,1719592246271,-1278.53356093,0.0002079,2]
[330585982,1719592246281,-16590.83085061,0.000208,3]
[330585983,1719592246293,-466.18,0.00020811,2]
[330585984,1719592246305,-4686.19116841,0.00020826,3]
[330585985,1719592246315,-2198.546258,0.00020836,2]
[330585988,1719592246325,-1529.00640797,0.00020836,2]
[330585990,1719592246342,-1585.00788603,0.00020836,2]
[330585992,1719592246354,-721.561753,0.00020836,2]
[330585994,1719592246364,-188.535227,0.00020836,2]
[330585996,1719592246374,-1179.977254,0.00020836,2]
[330585997,1719592246384,-1102.807005,0.00020836,2]
[330585998,1719592246397,-215.392391,0.00020836,2]
[330585999,1719592246406,-3445.267423,0.00020836,2]
[330586000,1719592246418,-367.602335,0.00020836,2]
[330586001,1719592246428,-4686.19116841,0.00020889,3]
[330586002,1719592246437,-9372.38233682,0.0002089,3]
[330586003,1719592246447,-432.88,0.0002089,2]
[330586004,1719592246457,-4266.14300469,0.00020897,2]
[330586005,1719592246466,-3286.98280462,0.000209,2]
[330586006,1719592246483,-3248.22772491,0.000209,2]
[330586008,1719592246494,-8903.56646063,0.000209,2]
[330586009,1719592246504,-170.75601304,0.000209,2]
[330586010,1719592246513,-2000.0,0.000209,2]
[330586011,1719592246523,-7500.0,0.000209,2]
[330586012,1719592246533,-31062.17760701,0.0002098,3]
[330586013,1719592246544,-9135.25170268,0.0002098,3]
[330586014,1719592246599,-279.39378656,0.0002098,3]
[330586015,1719592246710,-667.35,0.0002098,3]
[330586016,1719592246723,-276.03969957,0.0002098,3]
[330586017,1719592246740,-4526.756931,0.0002098,3]
[330586018,1719592246751,-10287.32429408,0.0002098,3]
[330586019,1719592246761,-432.88,0.0002098,2]
[330586020,1719592246774,-432.88,0.0002098,2]
[330586021,1719592246783,-432.88,0.0002098,2]
[330586022,1719592246794,-500.0,0.00020989,2]
[330586023,1719592246803,-201.0361084,0.00020989,2]
[330586024,1719592246816,-586.44132631,0.00020989,2]
[330586025,1719592246826,-922.0,0.0002099,2]
[330586026,1719592246837,-98410.0145366,0.0002099,3]
[330586027,1719592246846,-27599.04401186,0.0002099,3]
[330586028,1719592246857,-747.40899074,0.0002099,3]
[330586029,1719592246868,-641.5247125,0.0002099,3]
[330586030,1719592246893,-361.6920653,0.0002099,3]
[330586031,1719592246906,-82745.5052626,0.0002099,3]
[330586032,1719592246915,-432.88,0.0002099,2]
[330586033,1719592246925,-432.88,0.0002099,2]
[330586034,1719592246935,-432.88,0.0002099,2]
[330586035,1719592246944,-432.88,0.0002099,2]
[330586036,1719592246953,-432.0755022,0.00021,2]
[330586037,1719592246963,-850.0,0.00021,2]
[330586038,1719592246973,-250000.0,0.00021,2]
[330586039,1719592246982,-734.77502721,0.00021,2]
[330586040,1719592246992,-327.60053493,0.00021,2]
[330586041,1719592247001,-1250.0,0.00021,2]
[330586042,1719592247010,-11351.16870081,0.00021,2]
[330586043,1719592247020,-1374.54601389,0.00021012,2]
[330586044,1719592247030,-1722.633712,0.00021037,2]
[330586045,1719592247039,-400.356326,0.00021037,2]
[330586046,1719592247049,-152.728455,0.00021037,2]
[330586047,1719592247058,-155.0167928,0.0002104,2]
[330586048,1719592247068,-10190.4704585,0.00021061,3]
[330586049,1719592247078,-10190.4704585,0.00021067,3]
[330586050,1719592247089,-10190.4704585,0.00021077,3]
[330586051,1719592247099,-15438.7769901,0.00021081,2]
[330586052,1719592247108,-189.967853,0.00021087,2]
[330586053,1719592247117,-178.223548,0.00021087,2]
[330586054,1719592247127,-200.0,0.00021087,2]
[330586055,1719592247137,-162.034297,0.00021087,2]
[330586056,1719592247146,-172.167232,0.00021087,2]
[330586057,1719592247156,-180.590526,0.00021087,2]
[330586058,1719592247165,-152.728456,0.00021087,2]
[330586059,1719592247175,-2198.546258,0.00021087,2]
[330586060,1719592247184,-161.090664,0.00021087,2]
[330586061,1719592247194,-3114.014294,0.00021087,2]
[330586062,1719592247205,-721.561753,0.00021087,2]
[330586063,1719592247214,-188.535227,0.00021087,2]
[330586064,1719592247225,-1179.977254,0.00021087,2]
[330586065,1719592247235,-1102.807005,0.00021087,2]
[330586066,1719592247244,-215.392391,0.00021087,2]
[330586067,1719592247253,-3445.267423,0.00021087,2]
[330586068,1719592247263,-367.602335,0.00021087,2]
[330586069,1719592247272,-151.0,0.0002109,2]
[330586070,1719592247281,-6429.5424855,0.000211,7]
[330586071,1719592247291,-387.67227845,0.0002119,2]
[330586072,1719592247301,-432.88,0.00021198,2]
[330586073,1719592247310,-10190.4704585,0.00021209,3]
[330586074,1719592247320,-4266.14300469,0.00021229,2]
[330586075,1719592247330,-10190.4704585,0.00021232,3]
[330586076,1719592247341,-15438.7769901,0.00021262,2]
[330586077,1719592247350,-10190.4704585,0.0002134,3]
[330586078,1719592247359,-167.117338,0.00021345,2]
[330586079,1719592247368,-492.072385,0.0002137,2]
[330586080,1719592247378,-10190.4704585,0.00021403,3]
[330586081,1719592247387,-10190.4704585,0.00021423,3]
[330586082,1719592247397,-432.88,0.00021433,2]
[330586083,1719592247406,-15438.7769901,0.00021443,2]
[330586084,1719592247415,-150.0,0.00021487,2]
[330586085,1719592247424,-10190.4704585,0.0002152,3]
[330586086,1719592247434,-2000.0,0.0002153,2]
[330586087,1719592247443,-4266.14300469,0.00021561,2]
[330586088,1719592247453,-151.0,0.00021565,2]
[330586089,1719592247464,-20380.940917,0.00021614,3]
[330586090,1719592247473,-387.67227845,0.00021615,2]
[330586091,1719592247484,-15438.7769901,0.00021624,2]
[330586092,1719592247494,-166.89,0.00021644,2]
[330586093,1719592247503,-327.98,0.00021644,2]
[330586094,1719592247512,-170.67,0.00021644,2]
[330586095,1719592247523,-346.96,0.00021644,2]
[330586096,1719592247532,-50000.0,0.0002168,2]
[330586097,1719592247541,-432.88,0.00021704,2]
[330586098,1719592247552,-20380.940917,0.00021732,3]
[330586099,1719592247561,-2017.42451062,0.00021764,2]
[330586100,1719592247571,-10190.4704585,0.00021765,3]
[330586101,1719592247580,-152.84332,0.0002178,2]
[330586102,1719592247590,-432.88,0.00021782,2]
[330586103,1719592247599,-10190.4704585,0.00021792,3]
[330586104,1719592247609,-10190.4704585,0.00021795,3]
[330586105,1719592247618,-15438.7769901,0.00021805,2]
[330586106,1719592247627,-10190.4704585,0.00021829,3]
[330586107,1719592247637,-160.0,0.00021838,2]
[330586108,1719592247646,-12869.14169546,0.00021839,2]
[330586109,1719592247656,-10190.4704585,0.00021883,3]
[330586110,1719592247665,-432.88,0.00021887,2]
[330586111,1719592247675,-1664.4430151,0.00021893,2]
[330586112,1719592247684,-4266.14300469,0.00021893,2]
[330586113,1719592247692,-170.75601304,0.00021895,2]
[330586114,1719592247702,-10190.4704585,0.00021897,3]
[330586115,1719592247711,-8162.89898445,0.000219,2]
[330586116,1719592247722,-489.0,0.000219,4]
[330586117,1719592247738,-5900.0,0.00021906,7]
[330586118,1719592247747,-1423.2888994,0.00021915,2]
[330586119,1719592247757,-2401.67,0.00021917,3]
[330586120,1719592247768,-500.0,0.00021917,3]
[330586121,1719592247777,-500.0,0.00021917,3]
[330586122,1719592247788,-297.19,0.00021918,2]
[330586123,1719592247798,-165.36,0.00021918,2]
[330586124,1719592247807,-848.26,0.00021918,2]
[330586125,1719592247818,-10190.4704585,0.00021966,3]
[330586126,1719592247828,-500.0,0.0002197,3]
[330586127,1719592247839,-2401.67,0.00021972,3]
[330586128,1719592247849,-214.67204814,0.00021972,3]
[330586129,1719592247858,-500.0,0.00021972,3]
[330586130,1719592247868,-15438.7769901,0.00021985,2]
[330586131,1719592247878,-850.0,0.00022,2]
[330586132,1719592247888,-208.12727914,0.00022,2]
[330586133,1719592247898,-2401.67,0.00022027,3]
[330586134,1719592247907,-500.0,0.00022027,3]
[330586135,1719592247916,-800.0,0.00022027,2]
[330586136,1719592247926,-800.0,0.00022027,2]
[330586137,1719592247934,-800.0,0.00022027,2]
[330586138,1719592247944,-800.0,0.00022027,2]
[330586139,1719592247954,-151.0,0.00022039,2]
[330586140,1719592247966,-387.67227845,0.0002204,2]
[330586141,1719592247975,-153.54,0.00022077,2]
[330586142,1719592247986,-2401.67,0.00022082,3]
[330586143,1719592247995,-500.0,0.00022082,3]
[330586144,1719592248005,-432.88,0.00022115,2]
[330586145,1719592248014,-5800.0,0.00022121,2]
[330586146,1719592248025,-5800.0,0.00022121,2]
[330586147,1719592248034,-500.0,0.00022122,2]
[330586148,1719592248044,-10000.0,0.00022125,2]
[330586149,1719592248053,-5800.0,0.0002213,2]
[330586150,1719592248063,-5800.0,0.0002213,2]
[330586151,1719592248072,-500.0,0.00022131,2]
[330586152,1719592248082,-2401.67,0.00022136,3]
[330586153,1719592248093,-500.0,0.00022136,3]
[330586154,1719592248102,-5800.0,0.00022138,2]
[330586155,1719592248112,-5800.0,0.00022138,2]
[330586156,1719592248122,-581.42398785,0.00022138,2]
[330586157,1719592248131,-500.0,0.00022139,2]
[330586158,1719592248141,-1731.03,0.0002214,2]
[330586159,1719592248150,-867.21230229,0.00022142,2]
[330586160,1719592248160,-500.0,0.00022148,2]
[330586161,1719592248170,-2000.0,0.0002215,2]
[330586162,1719592248180,-500.0,0.00022157,2]
[330586163,1719592248189,-500.0,0.00022166,2]
[330586164,1719592248199,-15438.7769901,0.00022166,2]
[330586165,1719592248210,-500.0,0.00022175,2]
[330586166,1719592248219,-500.0,0.00022183,2]
[330586167,1719592248229,-2401.67,0.00022191,3]
[330586168,1719592248238,-500.0,0.00022191,3]
[330586169,1719592248248,-492.072385,0.00022192,2]
[330586170,1719592248257,-500.0,0.00022192,2]
[330586171,1719592248267,-490.0,0.000222,5]
[330586172,1719592248277,-258.0,0.000222,2]
[330586173,1719592248286,-500.0,0.00022201,2]
[330586174,1719592248297,-500.0,0.0002221,2]
[330586175,1719592248307,-500.0,0.00022219,2]
[330586176,1719592248316,-1664.4430151,0.00022226,2]
[330586177,1719592248327,-4266.14300469,0.00022226,2]
[330586178,1719592248339,-500.0,0.00022227,2]
[330586179,1719592248348,-500.0,0.00022236,2]
[330586180,1719592248357,-152.63,0.00022241,2]
[330586181,1719592248367,-432.88,0.00022244,2]
[330586182,1719592248377,-500.0,0.00022245,2]
[330586183,1719592248386,-2401.67,0.00022246,3]
[330586184,1719592248395,-500.0,0.00022246,3]
[330586185,1719592248405,-500.0,0.00022254,2]
[330586186,1719592248414,-500.0,0.00022263,2]
[330586187,1719592248424,-500.0,0.00022271,2]
[330586188,1719592248433,-500.0,0.0002228,2]
[330586189,1719592248443,-500.0,0.00022289,2]
[330586190,1719592248452,-177.66479859,0.00022295,2]
[330586191,1719592248461,-500.0,0.00022298,2]
[330586192,1719592248470,-2401.67,0.00022301,3]
[330586193,1719592248480,-500.0,0.00022301,3]
[330586194,1719592248489,-500.0,0.00022307,2]
[330586195,1719592248498,-500.0,0.00022315,2]
[330586196,1719592248508,-500.0,0.00022324,2]
[330586197,1719592248517,-500.0,0.00022333,2]
[330586198,1719592248526,-500.0,0.00022333,2]
[330586199,1719592248536,-500.0,0.00022342,2]
[330586200,1719592248546,-500.0,0.00022342,2]
[330586201,1719592248556,-15438.7769901,0.00022347,2]
[330586202,1719592248565,-500.0,0.00022351,2]
[330586203,1719592248575,-500.0,0.00022351,2]
[330586204,1719592248584,-2401.67,0.00022356,3]
[330586205,1719592248596,-500.0,0.00022356,3]
[330586206,1719592248605,-500.0,0.00022359,2]
[330586207,1719592248614,-500.0,0.00022359,2]
[330586208,1719592248623,-500.0,0.00022368,2]
[330586209,1719592248632,-500.0,0.00022368,2]
[330586210,1719592248641,-500.0,0.00022377,2]
[330586211,1719592248650,-500.0,0.00022377,2]
[330586212,1719592248659,-500.0,0.00022377,2]
[330586213,1719592248669,-500.0,0.00022386,2]
[330586214,1719592248678,-500.0,0.00022386,2]
[330586215,1719592248688,-500.0,0.00022386,2]
[330586216,1719592248697,-188.81,0.0002239,2]
[330586217,1719592248707,-400.0,0.00022392,2]
[330586218,1719592248717,-500.0,0.00022395,2]
[330586219,1719592248727,-500.0,0.00022395,2]
[330586220,1719592248738,-500.0,0.00022395,2]
[330586221,1719592248747,-500.0,0.00022403,2]
[330586222,1719592248757,-500.0,0.00022403,2]
[330586223,1719592248766,-2401.67,0.0002241,3]
[330586224,1719592248775,-500.0,0.0002241,3]
[330586225,1719592248786,-500.0,0.00022412,2]
[330586226,1719592248795,-500.0,0.00022412,2]
[330586227,1719592248805,-160.0,0.00022421,2]
[330586228,1719592248816,-500.0,0.00022421,2]
[330586229,1719592248826,-500.0,0.00022421,2]
[330586230,1719592248836,-160.0,0.0002243,2]
[330586231,1719592248846,-500.0,0.0002243,2]
[330586232,1719592248856,-500.0,0.0002243,2]
[330586233,1719592248865,-160.0,0.00022439,2]
[330586234,1719592248875,-500.0,0.00022439,2]
[330586235,1719592248885,-500.0,0.00022439,2]
[330586236,1719592248894,-160.0,0.00022447,2]
[330586237,1719592248904,-500.0,0.00022447,2]
[330586238,1719592248914,-160.0,0.00022447,2]
[330586239,1719592248923,-500.0,0.00022447,2]
[330586240,1719592248933,-160.0,0.00022456,2]
[330586241,1719592248943,-500.0,0.00022456,2]
[330586242,1719592248953,-160.0,0.00022456,2]
[330586243,1719592248962,-500.0,0.00022456,2]
[330586244,1719592248971,-2401.67,0.00022465,3]
[330586245,1719592248981,-160.0,0.00022465,2]
[330586246,1719592248991,-160.0,0.00022465,2]
[330586247,1719592249001,-500.0,0.00022465,3]
[330586248,1719592249011,-500.0,0.00022465,2]
[330586249,1719592249020,-160.0,0.00022465,2]
[330586250,1719592249030,-10637.51753377,0.00022465,2]
[330586251,1719592249039,-500.0,0.00022465,2]
[330586252,1719592249048,-387.67227845,0.00022465,2]
[330586253,1719592249058,-177.66479858,0.00022493,2]
[330586254,1719592249068,-260.0,0.000225,2]
[330586255,1719592249078,-151.0,0.00022514,2]
[330586256,1719592249090,-432.88,0.00022518,2]
[330586257,1719592249099,-2401.67,0.0002252,3]
[330586258,1719592249108,-500.0,0.0002252,3]
[330586259,1719592249116,-15438.7769901,0.00022528,2]
[330586260,1719592249125,-1664.4430151,0.00022558,2]
[330586261,1719592249134,-4266.14300469,0.00022558,2]
[330586262,1719592249143,-2401.67,0.00022575,3]
[330586263,1719592249153,-500.0,0.00022575,3]
[330586264,1719592249163,-2401.67,0.0002263,3]
[330586265,1719592249172,-500.0,0.0002263,3]
[330586266,1719592249182,-4815.63,0.00022642,2]
[330586267,1719592249191,-2401.67,0.00022684,3]
[330586268,1719592249201,-476.32264412,0.00022684,3]
[330586269,1719592249210,-177.66479858,0.00022692,2]
[330586270,1719592249220,-15438.7769901,0.00022709,2]
[330586271,1719592249229,-432.88,0.00022729,2]
[330586272,1719592249239,-2401.67,0.00022739,3]
[330586273,1719592249248,-58000.0,0.00022739,2]
[330586274,1719592249257,-4775.35668791,0.00022739,2]
[330586275,1719592249267,-22579.10029682,0.00022739,2]
[330586276,1719592249276,-2000.0,0.0002278,2]
[330586277,1719592249285,-600.0,0.0002279,2]
[330586278,1719592249295,-150.0,0.00022793,10]
[330586279,1719592249305,-150.0,0.00022793,10]
[330586280,1719592249315,-150.0,0.00022793,10]
[330586281,1719592249325,-150.0,0.00022793,10]
[330586282,1719592249334,-150.0,0.00022793,10]
[330586283,1719592249347,-150.0,0.00022793,10]
[330586284,1719592249356,-150.0,0.00022793,10]
[330586285,1719592249364,-150.0,0.00022793,10]
[330586286,1719592249379,-150.0,0.00022793,10]
[330586287,1719592249388,-206.37298878,0.00022793,10]
[330586288,1719592249397,-2401.67,0.00022794,3]
[330586289,1719592249407,-365.52714413,0.00022799,2]
[330586290,1719592249417,-365.52714413,0.00022799,2]
[330586291,1719592249427,-613.3433341,0.00022802,2]
[330586292,1719592249436,-150.0,0.00022848,10]
[330586293,1719592249446,-150.0,0.00022848,10]
[330586294,1719592249455,-150.0,0.00022848,10]
[330586295,1719592249465,-150.0,0.00022848,10]
[330586296,1719592249476,-150.0,0.00022848,10]
[330586297,1719592249486,-150.0,0.00022848,10]
[330586298,1719592249496,-150.0,0.00022848,10]
[330586299,1719592249506,-150.0,0.00022848,10]
[330586300,1719592249517,-2401.67,0.00022849,3]
[330586301,1719592249526,-150.0,0.00022889,10]
[330586302,1719592249536,-150.0,0.00022889,10]
[330586303,1719592249546,-150.0,0.00022889,10]
[330586304,1719592249557,-150.0,0.00022889,10]
[330586305,1719592249566,-150.0,0.00022889,10]
[330586306,1719592249575,-150.0,0.00022889,10]
[330586307,1719592249585,-150.0,0.00022889,10]
[330586308,1719592249597,-150.0,0.00022889,10]
[330586309,1719592249607,-15438.7769901,0.0002289,2]
[330586310,1719592249616,-177.66479858,0.0002289,2]
[330586311,1719592249625,-170.75601304,0.0002289,2]
[330586312,1719592249634,-1251.34943386,0.0002289,2]
[330586313,1719592249645,-1664.4430151,0.0002289,2]
[330586314,1719592249654,-4266.14300469,0.0002289,2]
[330586315,1719592249663,-387.67227845,0.0002289,2]
[330586316,1719592249673,-13114.70442647,0.0002289,2]
[330586317,1719592249682,-214.57866968,0.0002289,4]
[330586318,1719592249692,-304.48736652,0.0002289,2]
[330586319,1719592249701,-333.49377264,0.0002289,2]
[330586320,1719592249710,-150.0,0.00022899,10]
[330586321,1719592249720,-150.0,0.00022899,10]
[330586322,1719592249733,-150.0,0.00022899,10]
[330586323,1719592249743,-150.0,0.00022899,10]
[330586324,1719592249753,-150.0,0.00022899,10]
[330586325,1719592249762,-150.0,0.00022899,10]
[330586326,1719592249773,-150.0,0.00022899,10]
[330586327,1719592249783,-4493.15697919,0.000229,2]
[330586328,1719592249794,-308.54,0.000229,2]
[330586329,1719592249804,-150.0,0.00022903,10]
[330586330,1719592249815,-150.0,0.00022903,10]
[330586331,1719592249825,-150.0,0.00022903,10]
[330586332,1719592249834,-150.0,0.00022903,10]
[330586333,1719592249845,-150.0,0.00022903,10]
[330586334,1719592249854,-150.0,0.00022903,10]
[330586335,1719592249863,-150.0,0.00022903,10]
[330586336,1719592249872,-2401.67,0.00022904,3]
[330586337,1719592249882,-644.42009167,0.00022958,3]
[330586338,1719592249941,-1757.24990833,0.00022958,3]
[330586339,1719592249951,-2408.7840094,0.00022974,2]
[330586340,1719592249960,-2973.4729944,0.00022974,2]
[330586341,1719592249971,-254.4121346,0.00022974,2]
[330586342,1719592249981,-314.0537337,0.00022974,2]
[330586343,1719592249992,-232.16721957,0.00022974,2]
[330586344,1719592250007,-423.96701383,0.00022974,2]
[330586345,1719592250018,-3015.85684474,0.00022974,2]
[330586346,1719592250030,-2803.60169752,0.00022974,2]
[330586347,1719592250042,-155.45154024,0.00022974,2]
[330586348,1719592250052,-6035.09457,0.00022974,2]
[330586349,1719592250063,-565.9176037,0.00022974,2]
[330586350,1719592250073,-2501.45096416,0.00022974,2]
[330586351,1719592252832,-707.02783621,0.00022974,2]
[330586352,1719592252846,-41952.07212933,0.00022974,2]
[330586353,1719592252856,-44956.0178239,0.00022974,2]
[330586354,1719592252866,-50637.0,0.00022975,2]
[330586355,1719592252875,-150.0,0.00022978,2]
[330586356,1719592252884,-129500.0,0.00022986,2]
[330586357,1719592252893,-201.0,0.00022988,2]
[330586358,1719592252903,-201.0,0.00022988,2]
[330586359,1719592252913,-201.0,0.00022988,2]
[330586360,1719592252922,-201.0,0.00022988,2]
[330586361,1719592252931,-201.0,0.00022988,2]
[330586362,1719592252940,-201.0,0.00022988,2]
[330586363,1719592252950,-201.0,0.00022988,2]
[330586364,1719592252959,-201.0,0.00022988,2]
[330586365,1719592252968,-201.0,0.00022988,2]
[330586366,1719592252978,-214.0,0.00022988,2]
[330586367,1719592252987,-210.0,0.00022988,2]
[330586368,1719592252996,-224.0,0.00022988,2]
[330586369,1719592253006,-224.0,0.00022988,2]
[330586370,1719592253015,-224.0,0.00022988,2]
[330586371,1719592253024,-224.0,0.00022988,2]
[330586372,1719592253033,-211.0,0.00022988,2]
[330586373,1719592253043,-213.0,0.00022988,2]
[330586374,1719592253052,-213.0,0.00022988,2]
[330586375,1719592253061,-151.0,0.00022988,2]
[330586376,1719592253070,-162.84481228,0.0002299,5]